Cogmind - Beta 16.1 @@@ ROGUE MODE // 2026.04.12 @ 15:27:53 Player: zacyquack Result: Destroyed by G-47 Trooper with Particle Gun Performance ------------- Evolutions (2) 1000 Regions Visited (7) 1400 Robots Destroyed (83) 415 Value Destroyed (2112) 2112 Prototype IDs (41) 820 Alien Tech Used (0) 0 Bonus (493) 493 TOTAL SCORE: 6240 Bonus ------- Follower Combat Kills 193 Aligned with FarCom 300 Cogmind --------- Core Integrity 0/550 Matter 191/300 Energy 7/100 System Corruption 0% Temperature Cool (9) Movement Flying (29) Location -8/Materials Parts ------- > --- POWER (1) -------- (None) > --- PROPULSION (3) --- Cesium-ion Thruster Cesium-ion Thruster Cesium-ion Thruster > --- UTILITY (5) ------ Large Storage Unit Weight Redist. System Visual Processing Unit Hacking Suite > --- WEAPON (2) ------- Axe > --- INVENTORY (15) --- Improved VTOL Module Improved VTOL Module Improved VTOL Module Superbattery (1500) Melee Analysis Suite Improved Propulsion Shielding Datajack Peak State ------------ > --- POWER ------------ Light Deuterium Engine > --- PROPULSION ------- Light Treads Advanced Treads Improved VTOL Module > --- UTILITY ---------- Large Storage Unit Visual Processing Unit Hardened Light Armor Plating Hardened Light Armor Plating Hacking Suite > --- WEAPON ----------- Heavy Particle Gun Enhanced Autogun > --- INVENTORY -------- Cesium-ion Thruster Cesium-ion Thruster Cesium-ion Thruster Improved VTOL Module Improved VTOL Module Improved VTOL Module Superbattery Weight Redist. System Melee Analysis Suite Improved Propulsion Shielding Gatling Laser High-powered Shotgun Mini Grenade Launcher Datajack Axe [Rating: 34] Favorites ----------- Power Light Nuclear Core Engine Light Deuterium Engine Power Core Light Nuclear Core Propulsion Light Treads Treads Light Treads Flight Unit Improved VTOL Module Utility Hardened Light Armor Plating Device Weight Redist. System Storage Large Storage Unit Processor Visual Processing Unit Hackware Hacking Suite Protection Hardened Light Armor Plating Weapon Heavy Assault Rifle Energy Gun Heavy Particle Gun Energy Cannon Advanced Beam Cannon Ballistic Gun Heavy Assault Rifle Launcher Mini Grenade Launcher Slashing Weapon Axe Special Melee Weapon Datajack Build | -11 -10 -10 -9 -9 -9 -8 -8 ------- Run | Yrd Mat Min Mat Min Exi Min Mat Slots Evolved 4 | . . . 2 . . . 2 Power . | . . . . . . . . Propulsion 1 | . . . . . . . 1 Utility 3 | . . . 2 . . . 1 Weapon . | . . . . . . . . Parts Attached 57 | 6 10 . 15 . 1 3 22 Power 8 | 1 1 . 2 . . 2 2 Engine 5 | 1 . . . . . 2 2 Core 3 | . 1 . 2 . . . . Reactor . | . . . . . . . . Propulsion 14 | 2 2 . 2 . . . 8 Treads 10 | 2 2 . 2 . . . 4 Leg . | . . . . . . . . Wheel . | . . . . . . . . Hover . | . . . . . . . . Flight 4 | . . . . . . . 4 Utility 13 | 1 3 . 3 . 1 . 5 Device 1 | . . . . . . . 1 Storage 3 | 1 2 . . . . . . Processor 1 | . 1 . . . . . . Hackware 1 | . . . 1 . . . . Protection 7 | . . . 2 . 1 . 4 Artifact . | . . . . . . . . Weapon 22 | 2 4 . 8 . . 1 7 Energy Gun 6 | . 1 . 2 . . . 3 Energy Cannon 1 | . . . . . . . 1 Ballistic Gun 12 | 2 3 . 5 . . 1 1 Ballistic Cannon . | . . . . . . . . Launcher 1 | . . . . . . . 1 Special Weapon . | . . . . . . . . Impact Weapon . | . . . . . . . . Slashing Weapon 1 | . . . . . . . 1 Piercing Weapon . | . . . . . . . . Special Melee Weapon 1 | . . . 1 . . . . Unidentified Prototypes 7 | . . . 2 . . . 5 Parts Lost 14 | . . . 1 1 . . 12 Power 3 | . . . 1 1 . . 1 Propulsion 4 | . . . . . . . 4 Utility 2 | . . . . . . . 2 Weapon 5 | . . . . . . . 5 Highest Loss Streak 10 | . . . 1 1 . . 10 To Critical Strikes . | . . . . . . . . Average Backups 13 | 2 10 15 14 15 15 15 14 Power . | . 1 1 . . . . . Propulsion 2 | . . . 1 4 4 4 5 Utility 5 | . 4 8 6 5 5 5 4 Weapon 4 | 1 3 5 5 5 5 5 4 Tool/Special . | . . . . . . . . Unused Backups 29 | . 5 2 10 . . . 12 Power 5 | . 2 1 2 . . . . Propulsion 5 | . . . 1 . . . 4 Utility 9 | . 2 . 3 . . . 4 Weapon 10 | . 1 1 4 . . . 4 Tool/Special . | . . . . . . . . Average Slot Usage (%) 94 | . 88 100 99 94 88 92 97 Engine 2 | . . . . . . 4 8 Core 6 | . 12 14 11 5 . . . Treads 22 | . 25 28 22 22 22 22 17 Flight 2 | . . . . . . . 8 Storage 11 | . 14 14 11 11 11 11 9 Processor 9 | . 8 14 11 11 11 11 9 Hackware 6 | . . . 10 11 11 11 9 Protection 9 | . . . 11 11 11 11 17 Energy Gun 1 | . . . . . . . 6 Ballistic Gun 20 | . 24 28 21 22 19 22 10 Peak Build Rating 34 | 6 14 14 22 22 20 21 34 Average Rating 19 | 4 10 14 19 20 19 20 30 On Entrance 14 | . 6 14 14 22 19 20 21 Avg Prop Armor Cover (%) . | . . . . . . . . Naked Turns . | . . . . . . . . Heaviest Build 42 | 11 31 31 36 36 31 34 42 Greatest Support 43 | 40 40 40 43 40 40 40 42 Greatest Overweight (x) 8 | 2 3 . . . . . 8 Average Overweight (x) . | . . . . . . . . Largest Inventory Capacity 15 | 8 15 15 15 15 15 15 15 Average Capacity 13 | 7 11 15 15 15 15 15 15 Most Carried 15 | 6 15 15 15 15 15 15 15 Average Carried 13 | 2 10 14 14 15 14 15 14 Final Capacity 15 | 8 15 15 15 15 15 15 15 Final Carried 15 | 2 15 15 15 15 15 15 7 Class Distribution -------------------- 82% | Scavenger-Mutant 17% | Mutant Dominant Class ---------------- Scavenger-Mutant | -10/Materials Scavenger-Mutant | -10/Mines Scavenger-Mutant | -9/Materials Scavenger-Mutant | -9/Mines Scavenger-Mutant | -9/Exiles Scavenger-Mutant | -8/Mines Scavenger-Mutant | -8/Materials Resources | -11 -10 -10 -9 -9 -9 -8 -8 ----------- Run | Yrd Mat Min Mat Min Exi Min Mat Matter Collected 1942 | 268 441 30 337 37 . 207 622 Remotely . | . . . . . . . . Salvage Created 2572 | 61 598 95 784 191 . 133 710 Parts 151 | . 53 5 39 7 . 8 39 Haulers Intercepted 6 | . 2 . 2 . . . 2 Recyclers Shooed 3 | . . . 1 . . . 2 Parts Field Recycled . | . . . . . . . . Retrieved Matter . | . . . . . . . . Parts Self-Destructed . | . . . . . . . . Prevented . | . . . . . . . . Parts Restored . | . . . . . . . . Kills | -11 -10 -10 -9 -9 -9 -8 -8 ------- Run | Yrd Mat Min Mat Min Exi Min Mat Combat Hostiles Destroyed 60 | . 14 2 14 6 . 7 17 Guns 55 | . 14 2 14 6 . 7 12 AOE 5 | . . . . . . . 5 Classes Destroyed 10 | 1 6 . 1 . . . 2 Worker 3 | . 2 . . . . . 1 Hauler 6 | . 2 . 2 . . . 2 Recycler 4 | 1 . . . . . 1 2 Operator 3 | . 2 . 1 . . . . Watcher 7 | . 2 . 3 . . . 2 Swarmer 20 | . 6 . . . . 7 7 Grunt 32 | . 8 2 9 6 . . 7 Brawler 1 | . . . . . . . 1 Protector 1 | . . . . . . . 1 Sentry 6 | . . . 5 . . . 1 Best Kill Streak 9 | 1 6 2 5 3 . 5 9 Combat Bots Only 7 | . 4 2 4 3 . 4 7 Max Kills in Single Turn 4 | 1 2 1 1 1 . 2 4 Gunslinging 1 | . 1 . . . . 1 1 Exploded 4 | . . . . . . . 4 Melee . | . . . . . . . . Uniques/NPCs Destroyed . | . . . . . . . . Combat | -11 -10 -10 -9 -9 -9 -8 -8 -------- Run | Yrd Mat Min Mat Min Exi Min Mat Hostile Shots Fired 350 | . 54 8 40 28 . 21 199 Missed 96 | . 12 3 16 6 . 5 54 Hits 254 | . 42 5 24 22 . 16 145 Melee 4 | . . . . . . . 4 Projectile 250 | . 42 5 24 22 . 16 141 Critical Strikes 9 | . 1 . . . . . 8 Damage Taken 3730 | . 416 80 345 289 . 123 2477 Core 706 | . 35 . 25 78 . 9 559 Absorbed by Shields . | . . . . . . . . Core Remaining (%) 86 | 100 . 86 . . . 72 . Volleys Fired 203 | 2 64 5 51 19 . 12 50 Largest 2 | 2 2 2 2 2 . 2 2 Hottest 105 | 40 46 46 50 50 . 50 105 Shots Fired 395 | 4 128 10 102 38 . 24 89 Gun 389 | 4 128 10 102 38 . 24 83 Cannon . | . . . . . . . . Launcher 6 | . . . . . . . 6 Special . | . . . . . . . . Kinetic 370 | 4 128 10 102 38 . 24 64 Thermal 19 | . . . . . . . 19 Explosive 6 | . . . . . . . 6 Electromagnetic . | . . . . . . . . Robot Hit Streak 9 | 3 5 3 9 5 . 3 5 Robot Miss Streak 7 | . 6 7 5 5 . 6 6 Penetration Max . | . . . . . . . . Secondary Targets 8 | . 2 . 2 . . 1 3 Max Gunslinging Chain 1 | . 1 . 1 . . 1 1 Shots Hit Robots 218 | 3 55 4 57 24 3 16 56 Core Hits 140 | 1 35 3 31 12 . 10 48 Critical Kills 3 | . . . 1 1 . 1 . Critical Parts Destroyed 1 | . . . . . . . 1 Critical Strikes 5 | . . . 1 1 . 1 2 Burn 1 | . . . . . . . 1 Destroy 4 | . . . 1 1 . 1 1 Melee Attacks 3 | . . . . . 3 . . Impact . | . . . . . . . . Slashing . | . . . . . . . . Piercing . | . . . . . . . . Sneak Attacks 3 | . . . . . 3 . . Combat Hostiles . | . . . . . . . . Follow-up Attacks . | . . . . . . . . Damage Inflicted 4683 | 39 776 61 958 416 . 277 2156 Guns 3528 | 39 766 61 957 416 . 256 1033 Cannons . | . . . . . . . . Explosions 1093 | . . . . . . . 1093 Melee . | . . . . . . . . Ramming 62 | . 10 . 1 . . 21 30 Kinetic 3239 | 39 766 61 957 416 . 256 744 Thermal 289 | . . . . . . . 289 Explosive 1093 | . . . . . . . 1093 Electromagnetic . | . . . . . . . . Impact . | . . . . . . . . Slashing . | . . . . . . . . Piercing . | . . . . . . . . Highest Corruption 1 | . 1 1 . . . . . Average Corruption 1 | . 1 1 . . . . . Corruption Purged . | . . . . . . . . Corruption Blocked . | . . . . . . . . Effects 4 | . 1 3 . . . . . Message Errors 2 | . 1 1 . . . . . Matter Fused 1 | . . 1 . . . . . Energy Discharges 1 | . . 1 . . . . . Overload Shots . | . . . . . . . . Overflow Damage 7 | . . . . . . . 7 Projectiles . | . . . . . . . . Explosions 7 | . . . . . . . 7 Melee . | . . . . . . . . Knockbacks . | . . . . . . . . Impact . | . . . . . . . . Kinetic . | . . . . . . . . Secondary . | . . . . . . . . Self-Inflicted Damage 42 | . . . . . . . 42 Shots 2 | . . . . . . . 2 Rammed 13 | . 4 . 2 . . 3 4 Targets Rammed 13 | . 4 . 2 . . 3 4 Kicked . | . . . . . . . . Crushed . | . . . . . . . . Highest Temperature 395 | . 15 9 24 93 . . 395 Average Temperature 67 | . 4 4 7 44 . . 114 Received Heat Transfer 1317 | . 102 42 111 162 . . 900 Effects 4 | . . . . . . . 4 Shutdowns 1 | . . . . . . . 1 Interference 3 | . . . . . . . 3 Siege Activations . | . . . . . . . . Martial Activations . | . . . . . . . . Shielding Activations . | . . . . . . . . Robots Disrupted . | . . . . . . . . Combat Hostiles . | . . . . . . . . Robots Corrupted . | . . . . . . . . Combat Hostiles . | . . . . . . . . Parts Fried . | . . . . . . . . Impact Corruptions . | . . . . . . . . Robots Melted . | . . . . . . . . Combat Hostiles . | . . . . . . . . Parts Melted 1 | . . . 1 . . . . Heat Transferred 620 | . . . . . . . 620 Parts Sabotaged . | . . . . . . . . Parts Stolen . | . . . . . . . . Parts Stripped . | . . . . . . . . Power Chain Reactions . | . . . . . . . . Alert | -11 -10 -10 -9 -9 -9 -8 -8 ------- Run | Yrd Mat Min Mat Min Exi Min Mat Maximum Alert Level 1 | . . . 1 . . . 1 Low Security (%) 93 | 100 100 100 73 100 . 100 97 Level 1 6 | . . . 26 . . . 2 Level 2 . | . . . . . . . . Level 3 . | . . . . . . . . Level 4 . | . . . . . . . . Level 5 . | . . . . . . . . High Security . | . . . . . . . . Max Security . | . . . . . . . . Peak Influence 347 | 5 172 48 347 105 . 90 277 Initial 24 | . . 1 10 8 . . 24 Average 48 | . 41 6 110 57 . 16 28 Influence Increases 2223 | 5 456 58 735 155 . 165 649 Destroy 0b10 Robot/C 1360 | . 280 40 460 120 . 140 320 Destroy 0b10 Robot/NC 130 | 5 40 . 40 . . 5 40 Destroy Leader 308 | . 68 10 132 20 . 20 58 Allied During Kill 73 | . . 8 65 . . . . Successful Hack 72 | . 23 . 35 . . . 14 Disable Machine 45 | . 15 . . 15 . . 15 Anti-Garrison Action 150 | . . . . . . . 150 Destroy Structure 25 | . . . 3 . . . 22 Partial Spotted 15 | . . . . . . . 15 Lose Combat Pursuer 45 | . 30 . . . . . 15 Influence Decreases 1976 | 5 451 35 740 123 55 103 464 Entered New Map 130 | . . 4 18 15 55 . 38 Time Decay 1496 | 5 451 31 502 98 . 103 306 Lost Part 140 | . . . 10 10 . . 120 Lost Ally 60 | . . . 60 . . . . Purge Threat 150 | . . . 150 . . . . Squads Dispatched 12 | . 3 . 4 . . . 5 Investigation 5 | . 1 . 3 . . . 1 Extermination . | . . . . . . . . Reinforcement 5 | . 2 . 1 . . . 2 Assault 2 | . . . . . . . 2 Garrison . | . . . . . . . . Intercept . | . . . . . . . . Searches Triggered . | . . . . . . . . Construction Impeded 1 | . . . . . . . 1 Haulers Reinforced . | . . . . . . . . Active Scanning Responses . | . . . . . . . . Cargo Convoy Interrupts . | . . . . . . . . Stealth | -11 -10 -10 -9 -9 -9 -8 -8 --------- Run | Yrd Mat Min Mat Min Exi Min Mat Distress Signals 4 | . 1 . 3 . . . . Communications Jammed . | . . . . . . . . Distress Signals . | . . . . . . . . Times Spotted 108 | . 26 2 34 6 . 7 33 Peak Tracking Total 12 | . 5 2 8 3 . 4 12 Tactical Retreats 3 | . 2 . . . . . 1 Traps | -11 -10 -10 -9 -9 -9 -8 -8 ------- Run | Yrd Mat Min Mat Min Exi Min Mat Traps Triggered 6 | . 3 . 2 . . . 1 Indirectly . | . . . . . . . . Trap Hack Attempts . | . . . . . . . . Triggered . | . . . . . . . . Disarmed . | . . . . . . . . Reprogrammed . | . . . . . . . . Reused . | . . . . . . . . Traps Extracted . | . . . . . . . . Installed . | . . . . . . . . Triggered . | . . . . . . . . Machines | -11 -10 -10 -9 -9 -9 -8 -8 ---------- Run | Yrd Mat Min Mat Min Exi Min Mat Machines Disabled 4 | . 1 . . 1 . . 2 Max in Single Turn 1 | . 1 . . 1 . . 1 Garrison Access 1 | . . . . . . . 1 Machines Repaired . | . . . . . . . . Machines Dismantled . | . . . . . . . . Machines Sabotaged . | . . . . . . . . Overloaded Fab Kills . | . . . . . . . . Hacking | -11 -10 -10 -9 -9 -9 -8 -8 --------- Run | Yrd Mat Min Mat Min Exi Min Mat Machines Accessed 23 | . 8 . 10 . 1 . 4 Terminals 14 | . 5 . 6 . . . 3 Fabricators . | . . . . . . . . Repair Stations 1 | . 1 . . . . . . Recycling Units 4 | . 2 . 2 . . . . Scanalyzers 3 | . . . 2 . . . 1 Garrison Access . | . . . . . . . . Total Hacks 71 | . 26 . 29 . 1 . 15 Successful 39 | . 9 . 19 . 1 . 10 Failed 31 | . 17 . 10 . . . 4 Catastrophic 4 | . 4 . . . . . . Database Lockouts 1 | . . . . . . . 1 Manual 24 | . 2 . 15 . 1 . 6 Terminals 44 | . 18 . 18 . . . 8 Fabricators . | . . . . . . . . Repair Stations 4 | . 4 . . . . . . Recycling Units 7 | . 4 . 3 . . . . Scanalyzers 15 | . . . 8 . . . 7 Garrison Access . | . . . . . . . . Terminal Hacks 17 | . 6 . 7 . 1 . 3 Record 3 | . 2 . 1 . . . . Robot Analysis 2 | . 2 . . . . . . Branch Access Points 3 | . 1 . 1 . . . 1 Scanalyzer Index 1 | . . . 1 . . . . Unreport Threat 2 | . . . 1 . . . 1 Locate Traps 1 | . . . . . . . 1 Recall Investigation 1 | . . . 1 . . . . Hauler Manifests 3 | . 1 . 2 . . . . Proto ID Catalog 1 | . . . . . 1 . . Fabricator Hacks . | . . . . . . . . Repair Station Hacks 1 | . 1 . . . . . . Scan Component 1 | . 1 . . . . . . Recycling Unit Hacks 3 | . 1 . 2 . . . . Retrieve Components 3 | . 1 . 2 . . . . Scanalyzer 14 | . . . 8 . . . 6 Insert Component 5 | . . . 3 . . . 2 Analyze 5 | . . . 3 . . . 2 Retrieve Study 4 | . . . 2 . . . 2 Garrison Access Hacks . | . . . . . . . . Unauthorized Hacks 4 | . 1 . 2 . . . 1 Terminals 4 | . 1 . 2 . . . 1 Botnet 1 | . . . 1 . . . . Operators 3 | . 1 . 1 . . . 1 Fabricators . | . . . . . . . . Repair Stations . | . . . . . . . . Recycling Units . | . . . . . . . . Scanalyzers . | . . . . . . . . Garrison Access . | . . . . . . . . Data Cores Recovered . | . . . . . . . . Used . | . . . . . . . . Hacking Detections 19 | . 8 . 7 . . . 4 Full Trace Events 9 | . 4 . 4 . . . 1 Feedback Events 1 | . 1 . . . . . . Corruption 1 | . 1 . . . . . . Feedback Blocked . | . . . . . . . . Robot Schematics Acquired . | . . . . . . . . Robots Built . | . . . . . . . . Authchips . | . . . . . . . . Time . | . . . . . . . . Total Robot Build Rating . | . . . . . . . . Part Schematics Acquired 4 | . . . 2 . . . 2 Parts Built . | . . . . . . . . Authchips . | . . . . . . . . Time . | . . . . . . . . Total Part Build Rating . | . . . . . . . . Part Studies Acquired 4 | . . . 2 . . . 2 Parts Repaired . | . . . . . . . . Time . | . . . . . . . . Parts Recycled . | . . . . . . . . Recycled Matter . | . . . . . . . . Retrieved Matter . | . . . . . . . . Retrieved Components 21 | . 9 . 12 . . . . Parts Scanalyzed 5 | . . . 3 . . . 2 Part Schematics Acquired 4 | . . . 2 . . . 2 Parts Damaged . | . . . . . . . . Bothacking | -11 -10 -10 -9 -9 -9 -8 -8 ------------ Run | Yrd Mat Min Mat Min Exi Min Mat Used RIF Installer . | . . . . . . . . Robots Hacked 3 | . . . . . 3 . . Non-combat 2 | . . . . . 2 . . Combat 1 | . . . . . 1 . . Robot Hacks Applied 3 | . . . . . 3 . . parse_system 3 | . . . . . 3 . . Relay Couplers Released 4 | . . . . . . . 4 Machine Destruction 4 | . . . . . . . 4 Fabnet Peak Effective % . | . . . . . . . . Robots Rewired . | . . . . . . . . Allies Hacked . | . . . . . . . . Hacks Repelled . | . . . . . . . . Allies | -11 -10 -10 -9 -9 -9 -8 -8 -------- Run | Yrd Mat Min Mat Min Exi Min Mat Total Allies 3 | . . 3 . . . . . Largest Group 3 | . . 3 3 . . . . Highest-Rated Group 40 | . . 40 40 . . . . Highest-Rated Ally 16 | . . 16 16 . . . . Total Orders . | . . . . . . . . Ally Attacks 68 | . . 1 67 . . . . Total Damage 563 | . . 14 549 . . . . Kills 11 | . . . 11 . . . . Allies Corrupted . | . . . . . . . . Allies Melted . | . . . . . . . . Intel | -11 -10 -10 -9 -9 -9 -8 -8 ------- Run | Yrd Mat Min Mat Min Exi Min Mat Active Infowar (turns) 5659 | . 1033 327 1354 232 409 769 1535 Optics 5659 | . 1033 327 1354 232 409 769 1535 Robot Analysis Total 2 | . 2 . . . . . . Derelict Logs Recovered 1 | . . 1 . . . . . Drone Launches . | . . . . . . . . Drone Recoveries . | . . . . . . . . Exploration | -11 -10 -10 -9 -9 -9 -8 -8 ------------- Run | Yrd Mat Min Mat Min Exi Min Mat Turns Passed 6509 | 89 1734 327 1354 232 409 769 1595 Spaces Moved 3254 | 49 917 192 715 110 250 453 568 Core 90 | 16 71 . . . . . 3 Treads 3164 | 33 846 192 715 110 250 453 565 Legs . | . . . . . . . . Wheels . | . . . . . . . . Hover . | . . . . . . . . Flight . | . . . . . . . . Fastest Speed 50 | 50 100 160 160 160 160 160 152 Average Speed 170 | 144 162 160 160 160 160 160 216 Slowest Speed 450 | 160 200 160 160 160 160 160 450 Overloaded Moves . | . . . . . . . . Propulsion Burnouts . | . . . . . . . . Robots Hopped . | . . . . . . . . Potential Cave-ins . | . . . . . . . . Cave-ins Triggered . | . . . . . . . . Exploration Rate (%) 53 | 3 99 46 58 33 62 87 42 Regions Visited 7 Branch Regions 4 Pre-discovered Areas 1 | . . 1 . . . . . Known Exits Taken 2 | . 1 . 1 . . . . Unknown Exits Taken 5 | 1 . 1 . 1 1 1 . Scrap Searched 4 | . . 1 . 1 . 2 . Spaces Dug . | . . . . . . . . Terrain Destroyed 24 | . . . . . . . 24 Melee . | . . . . . . . . Projectile . | . . . . . . . . AOE 24 | . . . . . . . 24 Terrain Rammed . | . . . . . . . . Walls Destroyed . | . . . . . . . . Machines Disabled . | . . . . . . . . Actions | -11 -10 -10 -9 -9 -9 -8 -8 --------- Run | Yrd Mat Min Mat Min Exi Min Mat Total 3859 | 64 1045 203 828 128 257 472 862 Wait 189 | . 1 3 6 . . . 179 Move 3247 | 48 916 191 714 109 249 452 568 Hop . | . . . . . . . . Pick Up 67 | 8 29 2 16 . 1 . 11 Fast Attach 18 | . 4 . 4 . . 1 9 Attach 25 | 6 5 . 3 . 1 . 10 Detach . | . . . . . . . . Swap 28 | . 5 . 10 . 2 2 9 Drop 66 | . 17 2 22 . 1 2 22 Fire 203 | 2 64 5 51 19 . 12 50 Melee 3 | . . . . . 3 . . Ram . | . . . . . . . . Kick . | . . . . . . . . Crush 13 | . 4 . 2 . . 3 4 Escape Stasis . | . . . . . . . . Rewire . | . . . . . . . . Trap . | . . . . . . . . Miscellaneous . | . . . . . . . . Route ------- -11/Scrapyard -10/Materials (discovered 5 exits: *Mat x3 / *Min / [*Sub]) -10/Mines -9/Materials (discovered 2 exits: *Mat / *Min) -9/Mines (discovered 2 exits: *Mat / *Exi) -9/Exiles -8/Mines -8/Materials (discovered 2 exits: [*Fac] / Sto) History --------- Turn | Location | Event 16 | -11/Scrapyard | Discovered new exit (range 15) 90 | -11/Scrapyard | Entered Materials 289 | -10/Materials | Discovered new exit (range 9) 303 | -10/Materials | Build established: Mutant 565 | -10/Materials | Discovered new exit (range 12) 627 | -10/Materials | Identified exit to Mines 876 | -10/Materials | Discovered new exit (range 11) 900 | -10/Materials | Discovered new exit (range 18) 1101 | -10/Materials | Build established: Scavenger-Mutant 1455 | -10/Materials | Discovered new exit (range 18) 1824 | -10/Materials | Entered Mines 1831 | -10/Mines | Received a Rocket Launcher from a helpful Derelict 1943 | -10/Mines | Assisted by bots powering up and referring to "LRC-V3" 1994 | -10/Mines | Learned location of Zion (-6) 2140 | -10/Mines | Discovered new exit (range 7) 2151 | -10/Mines | Entered Materials 2151 | -9/Materials | Accompanied by 3 allies 2151 | -9/Materials | Evolved 2 slots: Utility x2 2233 | -9/Materials | Identified exit to Mines 2515 | -9/Materials | Lost 3 allies 3162 | -9/Materials | Discovered new exit (range 18) 3505 | -9/Materials | Entered Mines 3730 | -9/Mines | Deemed a non-threat by the Exiles lab entrance 3730 | -9/Mines | Discovered new exit (range 5) 3737 | -9/Mines | Discovered new exit (range 5) 3737 | -9/Mines | Entered Exiles 3776 | -9/Exiles | Met 8R-AWN 3803 | -9/Exiles | Met EX-HEX 3878 | -9/Exiles | Met EX-BIN 3900 | -9/Exiles | Aligned with FarCom system 3902 | -9/Exiles | Given EX-Vault access code 3940 | -9/Exiles | Opened EX-Vault 3955 | -9/Exiles | Found Superbattery 3986 | -9/Exiles | Warned to stay clear of 0b10 Research branches 4029 | -9/Exiles | Met EX-DEC 4088 | -9/Exiles | Discovered new exit (range 10) 4146 | -9/Exiles | Left Exiles lab with Superbattery 4146 | -9/Exiles | Entered Mines 4889 | -8/Mines | Discovered new exit (range 7) 4915 | -8/Mines | Entered Materials 4915 | -8/Materials | Evolved 2 slots: Propulsion x1, Utility x1 5163 | -8/Materials | Identified exit to Storage 5445 | -8/Materials | Discovered new exit (range 8) 6176 | -8/Materials | Central database locked down 6473 | -8/Materials | Build established: Mutant 6493 | -8/Materials | Core integrity fell below 50% 6502 | -8/Materials | Core integrity fell below 20% 6503 | -8/Materials | Destroyed 7 combat bots 6510 | -8/Materials | Destroyed by G-47 Trooper with Particle Gun Last Messages --------------- 06494_ K-01 Serf collects debris. 06494_ Critical hit (Burn: +37). 06494_ U-05 Engineer lays Concrete. 06495_ Knocked back. 06495_ U-05 Engineer lays Concrete. 06496_ R-06 Scavenger collects Remote Shield. 06496_ U-05 Engineer builds a Wall. 06497_ K-01 Serf collects debris. 06497_ U-05 Engineer lays Concrete. 06498_ Critical hit (Burn: +37). 06499_ U-05 Engineer lays Concrete. 06501_ Hpw. Shotgun destroyed. 06501_ U-05 Engineer lays Concrete. 06501_ K-01 Serf collects debris. 06502_ U-05 Engineer lays Concrete. 06506_ K-01 Serf collects debris. 06507_ Knocked back. 06507_ U-05 Engineer lays Concrete. 06509_ Gatling Laser destroyed. 06510_ U-05 Engineer lays Concrete. Map ----- +----------------------------------------------------+ | ????????????????????????######## ########??????# | | ???????????????????????######### #?????????????# | | ???????????????????????# [ ]# #?????????????# | | ???????????????????????# # #?????????????# | | ???????????????????????# """"" + #?????????????? | | ???????????????????????# """"" # ######????????? | | ???????????????????????# """"" # #????????? | | ???????????????????????######### +????????? | | ???????????????????????????????# #????????? | | ???????????????????????????????#gg #????????? | | ???????????????????????????????# g #????????? | | ????????????????????????######## #????????? | | ????????????????????????# #????????? | | ????????????????????????+ #????????? | | ????????????????????????# #????????? | | ????????????????????????# ###### #????????? | | ????????????????????????# ?????# +????????? | | ????????????????????????# #????# #????????? | | ???????????????????????? #????# #????????? | | ???????????????????????g #????# #????????? | | ??????????????????????g? #????# #????????? | | ????????????????????????# #??? # #????????? | | ????????????????????????# #???"# #????????? | | ????????????????????????# #???T# +????????? | | ????????????????????????# #?? "# #????????? | | ????????????????????????#@#?? # = #????????? | | ??????????????????????###b###"# =%* #????????? | | ??????????????????????# g g ! #????????? | | ??????????????????????# %g g #????????# | | ????????????????????### %i ! % #????????# | | ????????????????????#"" % ###????????# | | ????????????????????#"T u% % w ??????# | | ????????????????????#"" =% % ### ??????# | | ????????????????????## % k ##??? ????????# | | ?????????????????????# gg #??????????????# | | ?????????????????????# H ##??????????????# | | ????????????????????# gg #???????????????# | | ????????????????????# # T ###???????????????# | | ????????????????????## # #?????????????????# | | ?????????????????????## #####?????????????????? | | ??????????????????????# #??????????????????????? | | ??????????????????????# ???????????????????????? | | ??????????????????????# ??????>????????????????? | | ??????????????????????# ???????????????????????? | | ??????????????????????##+#???????????????????????? | | ?????????????????????????????????????????????????? | | ?????????????????????????????????????????????????? | | ?????????????????????????????????????????????????? | | ?????????????????????????????????????????????????? | | ?????????????????????????????????????????????????? | +----------------------------------------------------+ Best States ------------- Heat Dissipation 31 Energy Generation 14 Energy Capacity 160 Matter Stores 300 Matter Capacity 300 Sight Range 18 Terrain Scan Density 10 Additional Mass Support 6 Armor Coverage 300 Evasion (%) 40 Recoil Reduction 2 Offensive Hacking 10 Item Schematics ----------------- Cesium-ion Thruster | -9/Materials | Scanalyzed Mni. Grenade Launcher | -9/Materials | Scanalyzed Imp. Propulsion Shielding | -8/Materials | Scanalyzed Imp. VTOL Module | -8/Materials | Scanalyzed Robot Schematics ------------------ None Fabricated ------------ Nothing Repaired ---------- Nothing Studied --------- Mni. Grenade Launcher | -9/Materials | Hacked Particle Cannon | -9/Materials | Hacked Cesium-ion Thruster | -8/Materials | Hacked Axe | -8/Materials | Hacked Alien Tech Used ----------------- None Achievements -------------- None Challenges ------------ None Game ------ Seed ThermicLatentBoomstick Manual? 0 Play Time 00:50:24 Cumulative 23.8 hours Start 2026.04.12 @ 14:35:38 End 2026.04.12 @ 15:27:53 Sessions 1 Manual Loads 0 Difficulty Rogue Special Mode None Game No. 38 Rogue 38 Adventurer 0 Explorer 0 Win Type - Total 0 Types 0/0/0/0/0/0/0/0/0/0 Lore% 12 Gallery% 21 Achievement% 19 Wizard Run 0 Options --------- Layout 1 ASCII 0 Keyboard 0 Movement Mouse Keybinds 0 Fullscreen 1 Font 32/SmallcapsGlow Map View 50x35 Zoom Use 0% Tactical HUD 1 Map Filters NONE Filters NONE Steam 1 RUN: 738a34f2-aef7-47c1-904a-5751debdccc7